bitfinex-derivatives/quotes_SOLF0:USTF0_20250821
["timestamp","ask_amount","ask_price","bid_price","bid_amount"]
[1755752226305,0.03419069,187.98,187.95,2.81]
[1755752226510,0.03419069,187.98,187.96,4.91820469]
[1755752226808,0.03419069,187.98,187.95,2.81]
[1755752227312,0.03419069,187.98,187.96,4.91775642]
[1755752227514,0.03419069,187.98,187.92,2.25872686]
[1755752227701,0.03419069,187.98,187.93,4.91750614]
[1755752227907,2.25872686,188.03,187.96,5.3199]
[1755752228105,2.25872686,188.03,187.97,2.81]
[1755752228709,2.49678895,188.02,187.96,8.1299]
[1755752229007,0.03678895,188.02,187.98,2.81]
[1755752229202,2.49678895,188.02,187.98,2.81]
[1755752229712,2.46,188.01,187.98,2.81]
[1755752230417,0.03678895,188.02,187.92,2.25872686]
[1755752230606,0.03678895,188.02,187.95,2.25872686]
[1755752230813,0.03678895,188.02,187.99,2.81]
[1755752231012,492.59872686,188.06,187.99,2.81]
[1755752231413,0.03471966,188.02,188.0,2.81]
[1755752232209,0.03471966,188.02,187.95,5.06872686]
[1755752232409,0.03471966,188.02,187.98,2.81]
[1755752232614,0.03471966,188.02,187.99,10.23847482]
[1755752232816,0.03471966,188.02,188.01,2.81]
[1755752233712,0.03471966,188.02,187.95,2.25872686]
[1755752234015,0.03471966,188.02,187.96,13.05012029]
[1755752234216,0.03471966,188.02,187.98,2.81]
[1755752234416,0.03471966,188.02,187.99,4.92022029]
[1755752234611,0.03471966,188.02,188.0,4.92022029]
[1755752234911,0.03471966,188.02,187.95,2.81]
[1755752234912,2.49471966,188.02,187.95,2.81]
[1755752235113,2.49471966,188.02,187.96,4.92193872]
[1755752235319,2.46,188.01,187.97,4.92193872]
[1755752235613,2.46,188.0,187.98,4.92193872]
[1755752235916,2.46,188.0,187.99,4.92193872]
[1755752237115,2.49471966,188.02,187.99,4.92193872]
[1755752237314,2.49471966,188.02,187.95,8.1302]
[1755752237617,2.49471966,188.02,187.96,4.9250753]
[1755752237818,2.49471966,188.02,187.97,4.9250753]
[1755752238019,2.49471966,188.02,187.98,4.9250753]
[1755752238213,2.49471966,188.02,187.99,4.9250753]
[1755752238520,2.25872686,188.0,187.92,2.81]
[1755752238713,2.25872686,188.0,187.93,4.92597138]
[1755752239021,2.46,187.98,187.94,4.92597138]
[1755752239211,2.49465793,187.98,187.92,2.81]
[1755752239417,2.49465793,187.98,187.93,7.73694736]
[1755752239617,2.49465793,187.98,187.94,4.92694736]
[1755752239819,2.46,187.97,187.95,4.92694736]
[1755752240013,0.03465793,187.98,187.96,4.92694736]
[1755752240320,0.03465793,187.98,187.97,4.92679557]
[1755752240817,2.49465793,187.98,187.97,4.92679557]
[1755752241819,0.03465793,187.98,187.97,4.92679557]
[1755752242019,0.03465793,187.98,187.97,7.73679557]
[1755752242521,0.03465793,187.98,187.97,7.74067191]
[1755752243318,0.03465793,187.98,187.97,4.93067191]
[1755752244411,0.03465793,187.98,187.97,7.74067191]
[1755752245317,130.34,188.02,187.97,7.74067191]
[1755752245619,130.34,188.02,187.99,2.81]
[1755752245822,130.34,188.02,188.01,2.81]
[1755752246021,130.34,188.02,188.01,7.74067191]
[1755752248123,130.34,188.02,188.01,4.93067191]
[1755752248624,130.34,188.02,188.01,4.94536504]
[1755752250624,130.34,188.02,188.01,7.92536504]
[1755752251723,130.34,188.02,188.01,2.98]
[1755752251925,130.34,188.02,188.01,7.93993167]
[1755752252324,130.34,188.02,188.01,7.93987616]
[1755752252925,130.34,188.02,188.01,4.95987616]
[1755752254329,130.34,188.02,188.01,7.93987616]
[1755752254928,130.34,188.02,188.01,2.98]
[1755752255130,130.34,188.02,188.01,7.9393811]
[1755752257233,130.34,188.02,188.01,4.9593811]
[1755752257426,132.85,188.02,188.01,4.9593811]
[1755752260533,130.34,188.02,187.96,0.03974023]
[1755752260733,2.51,187.99,187.96,0.03974023]
[1755752261534,2.51,187.99,187.96,3.01974023]
[1755752262437,130.34,188.02,187.96,0.03974023]
[1755752263239,2.51,188.01,187.96,0.03974023]
[1755752263433,130.34,188.02,187.96,0.03974023]
[1755752263637,2.51,187.97,187.96,0.03974023]
[1755752268942,2.25872686,188.0,187.96,0.03974023]
[1755752269243,2.51,187.97,187.96,0.03974023]
[1755752270643,4.76872686,188.0,187.96,3.01974023]
[1755752271743,130.34,188.02,187.96,3.01974023]
[1755752272334,130.34,188.02,187.96,8.33974023]
[1755752272535,130.34,188.02,187.96,3.01974023]
[1755752273243,2.51,188.01,187.96,0.03974023]
[1755752273640,2.51,187.99,187.96,0.03974023]
[1755752276542,2.5,187.97,187.96,0.03974023]
[1755752278450,4.75872686,187.97,187.96,0.03974023]
[1755752281142,2.46,187.96,187.87,2.76]
[1755752281346,4.71872686,187.93,187.87,2.76]
[1755752282040,4.71872686,187.93,187.87,8.0824]
[1755752282449,0.03901377,187.92,187.87,5.3224]
[1755752282649,0.03901377,187.92,187.88,2.76]
[1755752282845,2.49901377,187.92,187.88,2.76]
[1755752284556,2.46,187.91,187.88,2.76]
[1755752284744,2.46,187.91,187.86,5.3228]
[1755752284949,2.46,187.91,187.87,2.76]
[1755752285153,2.46,187.91,187.86,2.76]
[1755752285356,2.46,187.91,187.87,2.76]
[1755752285653,2.46,187.91,187.88,2.76]
[1755752285848,0.03901377,187.92,187.88,2.76]
[1755752286149,2.49901377,187.92,187.88,2.76]
[1755752288059,2.49901377,187.92,187.85,142.18733267]
[1755752288452,2.49901377,187.92,187.86,2.76]
[1755752288955,2.49901377,187.92,187.87,5.3226]
[1755752289155,2.49901377,187.92,187.88,2.76]
[1755752289456,2.49901377,187.92,187.87,5.3226]
[1755752289457,0.03901377,187.92,187.89,2.76]
[1755752291261,0.03901377,187.92,187.9,2.76]
[1755752291861,2.49901377,187.92,187.86,8.0827]
[1755752292254,2.49901377,187.92,187.86,2.76]
[1755752292759,2.49901377,187.92,187.88,2.76]
[1755752293057,2.49901377,187.92,187.89,2.76]
[1755752293654,0.03901377,187.92,187.89,2.76]
[1755752293857,0.03901377,187.92,187.9,2.76]
[1755752294256,0.03901377,187.92,187.88,5.3223]
[1755752294652,0.03901377,187.92,187.9,2.76]
[1755752296359,0.03901377,187.92,187.88,5.3223]
[1755752296561,0.03901377,187.92,187.89,2.76]
[1755752296758,0.03901377,187.92,187.9,2.76]
[1755752297462,0.03901377,187.92,187.91,2.76]
[1755752300362,0.03901377,187.92,187.91,8.0815]
[1755752301365,0.03901377,187.92,187.91,2.76]
[1755752303564,0.03901377,187.92,187.91,8.0815]
[1755752304860,132.57872686,188.0,187.94,5.3206]
[1755752305068,135.07872686,188.0,187.97,2.76]
[1755752306366,135.07872686,188.0,187.97,2.79478185]
[1755752308771,135.07872686,188.0,187.97,0.03478185]
[1755752308962,132.57872686,188.0,187.97,0.03478185]
[1755752309465,135.08872686,188.0,187.97,0.03478185]
[1755752310056,2.51,187.99,187.97,0.03478185]
[1755752310466,132.57872686,188.0,187.97,0.03478185]
[1755752310668,2.51,187.99,187.97,0.03478185]
[1755752313164,2.51,187.98,187.97,0.03478185]
[1755752313370,2.51,187.98,187.89,7.46338249]
[1755752313371,4.76872686,187.98,187.89,7.46338249]
[1755752313568,2.51,187.95,187.89,3.0]
[1755752314868,0.03741588,187.94,187.89,3.0]
[1755752316173,0.03741588,187.94,187.88,3.0]
[1755752317671,0.03741588,187.94,187.9,5.3218]
[1755752317872,0.03741588,187.94,187.87,4.46338249]
[1755752318078,0.03741588,187.94,187.88,3.0]
[1755752318272,0.03741588,187.94,187.88,7.46338249]
[1755752318477,0.03741588,187.94,187.91,3.0]
[1755752319174,2.54741588,187.94,187.91,3.0]
[1755752319377,2.51,187.93,187.89,3.0]
[1755752319683,2.51,187.93,187.85,150.38048487]
[1755752319684,2.51,187.93,187.85,149.65071516]
[1755752319874,2.51,187.93,187.85,145.18733267]
[1755752320572,2.51,187.93,187.86,3.0]
[1755752321281,2.51,187.93,187.87,5.3223]
[1755752322979,2.29614274,187.94,187.88,5.3223]
[1755752323180,2.51,187.92,187.88,8.3223]
[1755752323581,2.51,187.92,187.88,5.3223]
[1755752323787,2.51,187.92,187.89,3.0]
[1755752325881,2.29614274,187.94,187.85,146.66043031]
[1755752326074,0.03741588,187.94,187.86,2.25872686]
[1755752326280,0.03741588,187.94,187.87,3.0]
[1755752326479,0.03741588,187.94,187.88,5.3222]
[1755752326884,0.03741588,187.94,187.89,5.322]
[1755752327185,2.51,187.93,187.9,3.0]
[1755752329484,2.25872686,187.93,187.88,8.3222]
[1755752329681,2.51,187.92,187.88,8.3222]
[1755752331384,2.51,187.92,187.87,5.3225]
[1755752331582,2.51,187.92,187.88,3.0]
[1755752331782,2.51,187.92,187.89,3.0]
[1755752332387,2.25872686,187.93,187.9,3.0]
[1755752332685,4.76872686,187.93,187.9,3.0]
[1755752333680,4.76872686,187.93,187.86,3.0]
[1755752334781,4.76872686,187.93,187.86,8.3228]
[1755752334977,4.76872686,187.93,187.87,3.0]
[1755752335385,4.76872686,187.93,187.87,8.3226]
[1755752336188,2.25872686,187.93,187.89,2.87]
[1755752336687,2.25872686,187.93,187.88,5.3223]
[1755752336887,2.25872686,187.93,187.9,2.87]
[1755752338285,1.45431422,187.92,187.9,2.87]
[1755752338487,1.45431422,187.92,187.89,5.322]
[1755752338686,1.45431422,187.92,187.9,2.87]
[1755752339884,2.51,187.91,187.86,2.87]
[1755752340080,1.45431422,187.89,187.86,2.87]
[1755752340282,1.45431422,187.89,187.87,2.87]
[1755752340689,1.45431422,187.89,187.85,4.47309764]
[1755752340980,1.45431422,187.87,187.82,4.47309764]
[1755752341181,1.45431422,187.85,187.82,2.87]
[1755752341585,1.45431422,187.85,187.83,2.87]
[1755752342088,1.48950043,187.85,187.83,2.87]
[1755752342288,0.03518621,187.85,187.83,2.87]
[1755752343588,0.03518621,187.85,187.81,5.3242]
[1755752344087,0.03518621,187.85,187.84,2.87]
[1755752345889,0.03518621,187.85,187.83,2.87]
[1755752346591,0.03518621,187.85,187.81,5.3243]
[1755752346778,0.03518621,187.85,187.84,2.87]
[1755752349380,0.03518621,187.85,187.8,4.47309764]
[1755752349688,0.03518621,187.85,187.82,2.87]
[1755752350288,2.51,187.84,187.82,2.87]
[1755752350593,2.2740075,187.83,187.78,2.87]
[1755752350790,2.2740075,187.83,187.8,2.87]
[1755752351091,2.2740075,187.83,187.81,2.87]
[1755752351492,2.2740075,187.84,187.81,2.87]
[1755752351690,4.7840075,187.84,187.81,2.87]
[1755752352493,4.81923516,187.84,187.81,2.87]
[1755752353796,4.81923516,187.84,187.75,5.3997509]
[1755752353987,4.81923516,187.84,187.76,2.87]
[1755752354187,4.81923516,187.84,187.77,5.3254]
[1755752354388,4.81923516,187.84,187.78,2.87]
[1755752356392,4.81923516,187.84,187.78,8.1952]
[1755752357390,4.81923516,187.84,187.79,5.3248]
[1755752357594,4.81923516,187.84,187.81,2.87]
[1755752358495,4.81923516,187.84,187.79,5.3248]
[1755752358496,2.30923516,187.84,187.82,2.87]
[1755752359198,4.81923516,187.84,187.79,5.3248]
[1755752359502,4.81923516,187.84,187.81,2.87]
[1755752360302,2.54522766,187.84,187.81,2.87]
[1755752360501,0.03522766,187.84,187.81,2.87]
[1755752360801,0.03522766,187.84,187.8,5.3246]
[1755752361002,0.03522766,187.84,187.82,2.87]
[1755752361202,0.03522766,187.84,187.8,8.1946]
[1755752361397,2.54522766,187.84,187.81,2.87]
[1755752362101,2.54522766,187.84,187.78,5.3251]
[1755752362302,2.54522766,187.84,187.78,8.1951]
[1755752363000,2.54522766,187.84,187.79,5.3249]
[1755752363203,2.54522766,187.84,187.81,2.87]
[1755752364301,1.45581065,187.82,187.81,2.87]
[1755752366200,0.03522766,187.84,187.76,1.45581065]
[1755752366503,1.45581065,187.83,187.82,3.0]
[1755752370401,1.45581065,187.83,187.8,5.3245]
[1755752370598,1.45581065,187.83,187.77,3.0]
[1755752371596,1.45581065,187.83,187.8,3.0]
[1755752371905,1.45581065,187.83,187.79,5.3249]
[1755752372101,1.45581065,187.83,187.81,3.0]
[1755752372602,1.45581065,187.83,187.79,5.3249]
[1755752372806,1.45581065,187.81,187.78,5.3252]
[1755752373013,3.95581065,187.81,187.76,7.47309764]
[1755752373306,3.95581065,187.81,187.77,3.0]
[1755752373511,3.95581065,187.81,187.77,5.3253]
[1755752373700,3.95581065,187.81,187.78,3.0]
[1755752373900,1.45581065,187.81,187.78,5.3251]
[1755752374108,1.45581065,187.81,187.8,3.0]
[1755752377712,1.45581065,187.81,187.77,5.3253]
[1755752377909,1.45581065,187.81,187.78,3.0]
[1755752378108,1.45581065,187.81,187.79,3.0]
[1755752380009,1.45581065,187.81,187.8,3.0]
[1755752382109,1.45581065,187.81,187.76,1.45581065]
[1755752382310,1.45581065,187.81,187.8,8.3246]
[1755752384820,1.45581065,187.81,187.8,3.0]
[1755752386019,1.45581065,187.81,187.8,8.3246]
[1755752387516,1.45581065,187.81,187.77,4.47309764]
[1755752387818,3.95581065,187.81,187.78,3.0]
[1755752388014,1.45581065,187.81,187.8,8.3246]
[1755752389722,1.45581065,187.83,187.82,3.0]
[1755752390916,1.45581065,187.83,187.8,8.3245]
[1755752394229,1.45581065,187.83,187.81,3.0]
[1755752396226,0.03522766,187.84,187.81,3.0]
[1755752396527,1.45581065,187.82,187.81,2.98]
[1755752397630,1.45581065,187.82,187.81,8.3043]
[1755752398920,1.45581065,187.82,187.78,4.47309764]
[1755752398921,0.03522766,187.84,187.83,2.98]
[1755752399121,1.49103831,187.84,187.83,2.98]
[1755752400223,0.03522766,187.84,187.83,8.3038]
[1755752400419,1.45581065,187.91,187.83,3.52]
[1755752400728,1.45581065,187.93,187.88,4.43581065]
[1755752400926,1.45581065,187.95,187.89,2.98]
[1755752401115,130.2,187.99,187.91,2.98]
[1755752401316,4.00581065,187.93,187.92,4.83412151]
[1755752401523,4.00581065,187.93,187.92,9.89768057]
[1755752401721,1.45581065,187.93,187.92,9.89768057]
[1755752401922,4.00581065,187.93,187.92,9.89768057]
[1755752402331,4.00581065,187.93,187.92,4.83412151]
[1755752402929,1.45581065,187.93,187.92,7.81412151]
[1755752403229,1.45581065,187.93,187.92,4.83412151]
[1755752403628,1.45581065,187.93,187.92,6.88692604]
[1755752404227,4.00581065,187.93,187.92,6.88692604]
[1755752404620,1.99581065,187.93,187.91,0.0401733]
[1755752404822,2.55,187.91,187.83,2.98]
[1755752405019,1.45581065,187.85,187.68,8.95250433]
[1755752405219,1.45581065,187.7,187.64,2.98]
[1755752405419,133.15,187.74,187.57,2.98]
[1755752405622,1.45581065,187.73,187.67,5.3282]
[1755752405822,5.93499032,187.84,187.73,2.98]
[1755752406030,5.93499032,187.91,187.78,1.45581065]
[1755752406224,1.45581065,187.83,187.75,1.45581065]
[1755752406419,2.27486833,187.85,187.76,2.98]
[1755752406620,2.27486833,187.82,187.76,2.98]
[1755752406931,4.82486833,187.79,187.73,2.98]
[1755752407129,2.31177594,187.81,187.73,2.98]
[1755752407320,2.31177594,187.81,187.67,2.27486833]
[1755752407321,2.27486833,187.81,187.76,2.98]
[1755752407525,2.27486833,187.78,187.71,2.98]
[1755752407727,1.33201132,187.77,187.71,2.98]
[1755752407929,1.33201132,187.77,187.73,2.98]
[1755752408128,3.77628663,187.77,187.74,2.98]
[1755752408328,1.33201132,187.76,187.74,2.98]
[1755752409827,0.03594991,187.77,187.73,5.3265]
[1755752410024,0.03594991,187.77,187.75,2.98]
[1755752410629,3.81016193,187.77,187.75,2.98]
[1755752410828,1.33210422,187.76,187.75,2.98]
[1755752412336,0.03594991,187.77,187.75,2.98]
[1755752412727,0.03594991,187.77,187.76,2.98]
[1755752413030,0.03594991,187.77,187.66,2.98]
[1755752413234,0.03594991,187.77,187.69,2.98]
[1755752413426,4.71726693,187.8,187.69,2.98]
[1755752414132,4.71726693,187.8,187.73,5.3266]
[1755752414336,0.03842112,187.76,187.73,5.3266]
[1755752414528,0.03842112,187.76,187.74,2.98]
[1755752415532,0.03842112,187.76,187.75,2.98]
[1755752415939,0.03842112,187.76,187.75,8.306]
[1755752417534,0.03842112,187.76,187.75,2.98]
[1755752418140,0.03842112,187.76,187.75,8.306]
[1755752419932,0.03842112,187.76,187.75,2.98]
[1755752420934,0.03842112,187.76,187.74,2.98]
[1755752421429,0.03842112,187.76,187.67,3.20199065]
[1755752421638,0.03842112,187.76,187.7,2.98]
[1755752424338,2.58842112,187.76,187.66,2.98]
[1755752424538,2.44052289,187.75,187.66,2.98]
[1755752424741,2.27486833,187.74,187.66,2.98]
[1755752425240,0.03772897,187.72,187.66,2.98]
[1755752426036,0.03772897,187.72,187.68,5.328]
[1755752426238,0.03772897,187.72,187.69,2.89]
[1755752426437,0.03772897,187.72,187.7,2.89]
[1755752427041,0.03772897,187.72,187.64,0.92718408]
[1755752427237,0.03772897,187.72,187.7,2.89]
[1755752427448,0.03772897,187.72,187.71,2.89]
[1755752431036,0.03772897,187.72,187.66,2.89]
[1755752431344,2.55,187.7,187.66,2.89]
[1755752431736,2.27486833,187.71,187.61,2.89]
[1755752432546,0.03842235,187.68,187.61,2.89]
[1755752432742,0.03842235,187.68,187.65,5.3288]
[1755752432944,0.03842235,187.68,187.67,2.89]
[1755752433447,0.03842235,187.68,187.61,2.89]
[1755752433849,0.03842235,187.68,187.61,8.2198]
[1755752434443,0.03842235,187.68,187.63,5.3293]
[1755752434652,0.03842235,187.68,187.65,2.89]
[1755752434849,0.03842235,187.68,187.66,2.89]
[1755752436249,0.03842235,187.68,187.63,2.89]
[1755752436443,0.03842235,187.68,187.64,2.89]
[1755752436753,0.03842235,187.68,187.62,5.3297]
[1755752437044,0.03842235,187.68,187.64,2.89]
[1755752437250,0.03842235,187.68,187.6,2.89]
[1755752437451,0.03842235,187.68,187.67,2.89]
[1755752437652,2.43973891,187.73,187.67,2.89]
[1755752437851,2.27486833,187.77,187.67,2.89]
[1755752438153,4.71537233,187.77,187.69,2.89]
[1755752438747,4.71537233,187.77,187.69,8.2177]
[1755752438950,4.71537233,187.77,187.69,2.89]
[1755752439254,4.71537233,187.77,187.71,0.03771001]
[1755752440753,4.71537233,187.77,187.71,5.36471001]
[1755752441053,2.440504,187.77,187.71,2.92771001]
[1755752441255,2.27486833,187.79,187.71,2.92771001]
[1755752441656,2.27486833,187.79,187.72,5.3268]
[1755752442050,2.27486833,187.79,187.71,2.92771001]
[1755752442355,4.85486833,187.79,187.71,2.92771001]
[1755752442555,2.44157075,187.78,187.71,2.92771001]
[1755752444055,4.85486833,187.77,187.71,2.92771001]
[1755752444356,5.02157075,187.76,187.71,2.92771001]
[1755752444554,2.58,187.76,187.71,2.92771001]
[1755752445154,2.58,187.76,187.72,2.89]
[1755752445344,2.27486833,187.77,187.71,0.03771001]
[1755752445551,2.44270687,187.78,187.72,2.89]
[1755752445753,2.44270687,187.78,187.72,8.2166]
[1755752446358,2.44270687,187.78,187.74,2.89]
[1755752446557,2.44270687,187.78,187.75,2.89]
[1755752447558,2.44680213,187.77,187.75,2.89]
[1755752447757,2.44680213,187.76,187.75,2.89]
[1755752448956,2.44680213,187.76,187.74,0.03815532]
[1755752449158,2.44680213,187.75,187.74,0.03815532]
[1755752449358,7.30167046,187.79,187.74,0.03815532]
[1755752449559,2.44680213,187.78,187.74,0.03815532]
[1755752449761,2.44680213,187.78,187.75,2.89]
[1755752449961,5.02680213,187.78,187.75,2.89]
[1755752450157,2.44680213,187.77,187.75,2.89]
[1755752450560,2.45440405,187.76,187.75,2.89]
[1755752450759,5.03440405,187.76,187.74,0.03815532]
[1755752451060,5.03440405,187.75,187.74,0.03815532]
[1755752452356,5.03440405,187.75,187.62,2.89]
[1755752452661,2.27486833,187.72,187.62,2.89]
[1755752452854,2.27486833,187.72,187.65,5.3286]
[1755752453060,2.27486833,187.72,187.66,2.89]
[1755752453457,4.85486833,187.72,187.66,2.89]
[1755752453655,2.48877646,187.71,187.6,2.27486833]
[1755752453858,0.0341464,187.71,187.64,2.89]
[1755752454057,0.0341464,187.71,187.68,5.3278]
[1755752454259,0.0341464,187.71,187.64,2.89]
[1755752454858,0.0341464,187.71,187.68,5.3277]
[1755752455060,0.0341464,187.71,187.7,2.89]
[1755752455663,0.0341464,187.71,187.7,8.2174]
[1755752460462,2.39346678,187.76,187.7,2.89]
[1755752460661,2.39346678,187.75,187.7,2.89]
[1755752460858,132.14,187.8,187.7,2.89]
[1755752461061,2.39354734,187.79,187.7,2.89]
[1755752461268,4.88486833,187.75,187.64,2.82]
[1755752461470,2.61,187.73,187.65,2.82]
[1755752461661,2.39354734,187.72,187.65,2.82]
[1755752461974,5.00354734,187.72,187.68,2.85630222]
[1755752462262,2.393034,187.71,187.68,2.85630222]
[1755752462463,2.393034,187.71,187.7,2.82]
[1755752462659,4.88486833,187.76,187.7,2.82]
[1755752462871,5.00345813,187.75,187.7,2.82]
[1755752463169,5.00345813,187.74,187.7,2.82]
[1755752463468,2.39345813,187.73,187.7,2.82]
[1755752463669,2.39345813,187.73,187.71,2.82]
[1755752463967,2.27486833,187.76,187.71,2.82]
[1755752464162,2.61,187.75,187.71,8.147]
[1755752464372,2.39255376,187.74,187.71,8.147]
[1755752464866,2.39255376,187.74,187.72,5.3268]
[1755752465772,2.61,187.75,187.71,8.1471]
[1755752466072,5.00149028,187.74,187.71,8.1471]
[1755752466264,2.39149028,187.73,187.71,8.1471]
[1755752466465,2.39149028,187.73,187.72,5.3269]
[1755752466967,5.93499032,187.83,187.72,3.36]
[1755752467171,5.93499032,187.83,187.74,2.82]
[1755752467172,2.39269882,187.8,187.74,2.82]
[1755752467767,2.39269882,187.8,187.75,0.03789477]
[1755752468071,207.26607672,187.86,187.78,2.82]
[1755752468268,207.26607672,187.86,187.8,8.1446]
[1755752469261,207.26607672,187.86,187.77,2.82]
[1755752469461,207.26607672,187.86,187.76,2.27486833]
[1755752469462,2.61,187.8,187.76,2.82]
[1755752469670,2.27486833,187.84,187.75,0.03789477]
[1755752469671,2.61,187.84,187.75,0.03789477]
[1755752469873,2.61,187.84,187.79,8.1447]
[1755752470271,2.61,187.84,187.8,2.82]
[1755752470572,2.61,187.84,187.8,8.1446]
[1755752470975,204.65607672,187.86,187.8,8.1446]
[1755752473975,204.65607672,187.86,187.8,2.82]
[1755752474170,2.61,187.84,187.76,2.27486833]
[1755752474375,2.61,187.84,187.78,2.82]
[1755752474567,2.61,187.84,187.8,5.3246]
[1755752474976,204.65607672,187.86,187.8,8.1446]
[1755752476880,2.61,187.84,187.79,5.3248]
[1755752477080,204.65607672,187.86,187.76,5.09486833]
[1755752477081,5.05106226,187.81,187.77,2.82]
[1755752477381,2.61,187.8,187.75,2.85789477]
[1755752477777,2.61,187.8,187.76,2.82]
[1755752477981,2.44106226,187.81,187.76,2.82]
[1755752478181,2.44106226,187.81,187.78,2.82]
[1755752478378,2.44106226,187.81,187.78,8.145]
[1755752478781,2.44106226,187.81,187.79,5.3249]
[1755752479478,2.44106226,187.81,187.78,8.1451]
[1755752480776,2.27486833,187.8,187.75,0.03789477]
[1755752481182,2.61,187.76,187.75,0.03789477]
[1755752482884,2.61,187.76,187.65,2.82]
[1755752483084,2.61,187.76,187.68,5.3278]
[1755752483284,2.61,187.76,187.65,2.82]
[1755752484184,0.03753691,187.72,187.65,2.82]
[1755752484581,4.88486833,187.71,187.63,4.48060094]
[1755752484775,2.61,187.7,187.6,2.82]
[1755752484978,2.61,187.7,187.62,5.3297]
[1755752485381,2.61,187.67,187.6,2.82]
[1755752486577,2.61,187.67,187.58,5.3308]
[1755752487384,0.03831479,187.64,187.59,5.3305]
[1755752487682,2.66831479,187.64,187.59,8.1905]
[1755752488288,2.63,187.63,187.59,2.86]
[1755752488485,2.63,187.63,187.56,5.13486833]
[1755752489486,0.03831479,187.64,187.6,2.86]
[1755752489784,0.03831479,187.64,187.56,2.27486833]
[1755752489992,0.03831479,187.64,187.62,5.3295]
[1755752490189,0.03831479,187.64,187.62,8.1895]
[1755752490390,0.03831479,187.64,187.62,2.86]
[1755752491289,0.03831479,187.64,187.63,5.3295]
[1755752491487,2.66831479,187.64,187.6,2.86]
[1755752491988,0.03831479,187.64,187.61,2.86]
[1755752492188,0.03831479,187.64,187.59,2.27486833]
[1755752492488,0.03831479,187.64,187.62,2.86]
[1755752492690,0.03831479,187.64,187.62,8.1895]
[1755752493187,0.03831479,187.64,187.63,5.3295]
[1755752493590,0.03831479,187.64,187.63,8.1895]
[1755752493791,0.03831479,187.64,187.63,2.86]
[1755752493991,0.03831479,187.64,187.6,2.86]
[1755752494190,0.03831479,187.64,187.61,2.86]
[1755752494391,0.03831479,187.64,187.61,8.1898]
[1755752494587,0.03831479,187.64,187.61,2.86]
[1755752495690,0.03831479,187.64,187.6,2.86]
[1755752495892,0.03831479,187.64,187.62,2.86]
[1755752496485,0.03831479,187.64,187.62,8.1897]
[1755752497289,0.03831479,187.64,187.56,5.13486833]
[1755752497589,2.63,187.63,187.56,2.86]
[1755752498895,2.27486833,187.61,187.52,2.86]
[1755752499095,2.63,187.6,187.52,2.86]
[1755752499490,2.63,187.6,187.53,5.3322]
[1755752499695,0.0347039,187.58,187.53,5.3322]
[1755752499894,0.0347039,187.58,187.54,2.86]
[1755752500792,0.0347039,187.58,187.55,2.86]
[1755752502001,0.0347039,187.58,187.52,5.3326]
[1755752502193,0.0347039,187.58,187.52,2.86]
[1755752504496,0.0347039,187.58,187.52,8.1925]
[1755752506000,0.0347039,187.58,187.52,2.86]
[1755752506301,2.6647039,187.58,187.5,5.13486833]
[1755752506601,2.6647039,187.58,187.51,2.86]
[1755752507389,2.6647039,187.58,187.53,5.3321]
[1755752507590,2.6647039,187.58,187.51,2.86]
[1755752507995,2.6647039,187.58,187.55,2.86]
[1755752508898,2.6647039,187.58,187.51,2.86]
[1755752509299,2.6647039,187.58,187.52,5.3324]
[1755752509702,2.6647039,187.58,187.51,2.86]
[1755752509903,2.6647039,187.58,187.52,5.3325]
[1755752513807,2.6647039,187.58,187.51,2.86]
[1755752514200,4.93957223,187.58,187.51,2.86]
[1755752514906,4.93957223,187.58,187.52,5.3325]
[1755752515608,4.93957223,187.58,187.51,2.86]
[1755752515807,0.0347039,187.58,187.51,2.86]
[1755752516200,2.6547039,187.58,187.54,2.8]
[1755752517302,2.62,187.57,187.54,2.8]